fUSD/lending_fUSD_20240614
["ID","MTS","AMOUNT","RATE_DAILY","PERIOD"]
[329454669,1718374318122,-500.0,0.00024931,3]
[329454670,1718374318134,-500.0,0.00024931,3]
[329454671,1718374318156,-500.0,0.00024931,3]
[329454672,1718374318167,-500.0,0.00024931,3]
[329454673,1718374318178,-791.99,0.00024931,3]
[329454674,1718374318188,-500.0,0.00024931,3]
[329454675,1718374318200,-500.0,0.00024931,3]
[329454676,1718374318218,-500.0,0.00024931,3]
[329454677,1718374318231,-500.0,0.00024931,3]
[329454678,1718374318261,-500.0,0.00024931,3]
[329454679,1718374318305,-500.0,0.00024931,3]
[329454680,1718374318321,-565.62,0.00024931,3]
[329454681,1718374318333,-500.0,0.00024931,3]
[329454682,1718374318347,-500.0,0.00024931,3]
[329454683,1718374318383,-500.0,0.00024931,3]
[329454684,1718374318403,-717.7,0.00024931,3]
[329454685,1718374318415,-500.0,0.00024931,3]
[329454686,1718374318426,-500.0,0.00024931,3]
[329454687,1718374318438,-500.0,0.00024931,3]
[329454688,1718374318449,-500.0,0.00024931,3]
[329454689,1718374318476,-500.0,0.00024931,3]
[329454690,1718374318488,-500.0,0.00024931,3]
[329454691,1718374318498,-652.11,0.00024931,3]
[329454692,1718374318509,-500.0,0.00024931,3]
[329454693,1718374318521,-500.0,0.00024931,3]
[329454694,1718374318533,-500.0,0.00024931,3]
[329454695,1718374318554,-500.0,0.00024931,3]
[329454696,1718374318570,-500.0,0.00024931,3]
[329454697,1718374318584,-500.0,0.00024931,3]
[329454698,1718374318602,-500.0,0.00024931,3]
[329454699,1718374318626,-500.0,0.00024931,3]
[329454700,1718374318644,-1076.23,0.00024931,3]
[329454701,1718374318676,-500.0,0.00024931,3]
[329454702,1718374318689,-500.0,0.00024931,3]
[329454703,1718374318708,-500.0,0.00024931,3]
[329454704,1718374318724,-500.0,0.00024931,3]
[329454705,1718374318744,-500.0,0.00024931,3]
[329454706,1718374318768,-500.0,0.00024931,3]
[329454707,1718374318778,-888.68,0.00024931,3]
[329454708,1718374318793,-500.0,0.00024931,3]
[329454709,1718374318816,-500.0,0.00024931,3]
[329454710,1718374318830,-500.0,0.00024931,3]
[329454711,1718374318848,-500.0,0.00024931,3]
[329454712,1718374318859,-500.0,0.00024931,3]
[329454713,1718374318874,-500.0,0.00024931,3]
[329454714,1718374318885,-500.0,0.00024931,3]
[329454715,1718374318911,-500.0,0.00024931,3]
[329454716,1718374318926,-500.0,0.00024931,3]
[329454717,1718374318940,-500.0,0.00024931,3]
[329454718,1718374318957,-500.0,0.00024931,3]
[329454719,1718374318974,-500.0,0.00024931,3]
[329454720,1718374319006,-500.0,0.00024931,3]
[329454721,1718374319058,-693.55,0.00024931,3]
[329454722,1718374319097,-500.0,0.00024931,3]
[329454723,1718374319124,-917.0,0.00024931,3]
[329454724,1718374319138,-500.0,0.00024931,3]
[329454725,1718374319166,-599.95,0.00024931,3]
[329454726,1718374319187,-500.0,0.00024931,3]
[329454727,1718374319218,-500.0,0.00024931,3]
[329454728,1718374319231,-500.0,0.00024931,3]
[329454729,1718374319262,-500.0,0.00024931,3]
[329454730,1718374319308,-500.0,0.00024931,3]
[329454731,1718374319320,-500.0,0.00024931,3]
[329454732,1718374319347,-500.0,0.00024931,3]
[329454733,1718374319358,-500.0,0.00024931,3]
[329454734,1718374319370,-500.0,0.00024931,3]
[329454735,1718374319387,-548.18996754,0.00024931,2]
[329454736,1718374319401,-839.71,0.00024931,3]
[329454737,1718374319426,-500.0,0.00024931,3]
[329454738,1718374319449,-500.0,0.00024931,3]
[329454739,1718374319473,-500.0,0.00024931,3]
[329454740,1718374319520,-641.52,0.00024931,3]
[329454741,1718374319576,-350.24043255,0.00024931,3]
[329454742,1718374319600,-675.06,0.00024931,3]
[329454743,1718374319622,-546.34,0.00024931,3]
[329454744,1718374319637,-790.03,0.00024931,3]
[329454745,1718374319653,-500.0,0.00024931,3]
[329454746,1718374319664,-500.0,0.00024931,3]
[329454747,1718374319675,-1529.68,0.00024931,3]
[329454748,1718374319697,-500.0,0.00024931,3]
[329454749,1718374319711,-500.0,0.00024931,3]
[329454750,1718374319724,-802.47,0.00024931,3]
[329454751,1718374319745,-500.0,0.00024931,3]
[329454752,1718374319758,-500.0,0.00024931,3]
[329454753,1718374319769,-500.0,0.00024931,3]
[329454754,1718374319781,-543.46,0.00024931,3]
[329454755,1718374319797,-1207.99,0.00024931,3]
[329454756,1718374319812,-459.70768743,0.00024931,3]
[329454757,1718374319825,-500.0,0.00024931,3]
[329454758,1718374319837,-500.0,0.00024931,3]
[329454759,1718374319852,-500.0,0.00024931,3]
[329454760,1718374319880,-743.91,0.00024931,3]
[329454761,1718374319899,-961.27,0.00024931,3]
[329454762,1718374319910,-500.0,0.00024931,3]
[329454763,1718374319923,-500.0,0.00024931,3]
[329454764,1718374319935,-500.0,0.00024931,3]
[329454765,1718374319946,-500.0,0.00024931,3]
[329454766,1718374319965,-500.0,0.00024931,3]
[329454767,1718374319978,-500.0,0.00024931,3]
[329454768,1718374319989,-500.0,0.00024931,3]
[329454769,1718374320005,-624.95,0.00024931,3]
[329454770,1718374320036,-500.0,0.00024931,3]
[329454771,1718374320069,-490.66132722,0.00024931,3]
[329454772,1718374320084,-500.0,0.00024931,3]
[329454773,1718374320095,-500.0,0.00024931,3]
[329454774,1718374320107,-500.0,0.00024931,3]
[329454775,1718374320120,-500.0,0.00024931,3]
[329454776,1718374320293,-722.9,0.00024931,3]
[329454777,1718374320330,-500.0,0.00024931,3]
[329454778,1718374320350,-613.44,0.00024931,3]
[329454779,1718374320373,-500.0,0.00024931,3]
[329454780,1718374320401,-500.0,0.00024931,3]
[329454781,1718374320432,-773.81,0.00024931,3]
[329454782,1718374320455,-500.0,0.00024931,3]
[329454783,1718374320486,-500.0,0.00024931,3]
[329454784,1718374320513,-500.0,0.00024931,3]
[329454785,1718374320528,-500.0,0.00024931,3]
[329454786,1718374320546,-500.0,0.00024931,3]
[329454787,1718374320563,-500.0,0.00024931,3]
[329454788,1718374320578,-500.0,0.00024931,3]
[329454789,1718374320622,-500.0,0.00024931,3]
[329454791,1718374320637,-500.0,0.00024931,3]
[329454792,1718374320684,-500.0,0.00024931,3]
[329454793,1718374320695,-500.0,0.00024931,3]
[329454794,1718374320706,-150.0,0.00024931,3]
[329454795,1718374320718,-500.0,0.00024931,3]
[329454796,1718374320731,-500.0,0.00024931,3]
[329454797,1718374320761,-500.0,0.00024931,3]
[329454798,1718374320796,-638.15,0.00024931,3]
[329454799,1718374320810,-500.0,0.00024931,3]
[329454800,1718374320821,-151.0,0.00024931,7]
[329454801,1718374320832,-151.0,0.00024931,7]
[329454802,1718374320862,-1315.53,0.00024931,3]
[329454803,1718374320883,-151.0,0.00024931,7]
[329454804,1718374320896,-151.0,0.00024931,7]
[329454805,1718374320910,-500.0,0.00024931,3]
[329454806,1718374320942,-500.0,0.00024931,3]
[329454807,1718374320980,-500.0,0.00024931,3]
[329454808,1718374320991,-500.0,0.00024931,3]
[329454809,1718374321004,-500.0,0.00024931,3]
[329454810,1718374321028,-500.0,0.00024931,3]
[329454811,1718374321072,-805.14,0.00024931,3]
[329454812,1718374321085,-500.0,0.00024931,3]
[329454813,1718374321098,-500.0,0.00024931,3]
[329454814,1718374321118,-500.0,0.00024931,3]
[329454815,1718374321130,-500.0,0.00024931,3]
[329454816,1718374321168,-500.0,0.00024931,3]
[329454817,1718374321187,-500.0,0.00024931,3]
[329454818,1718374321205,-897.25,0.00024931,3]
[329454819,1718374321218,-500.0,0.00024931,3]
[329454820,1718374321229,-500.0,0.00024931,3]
[329454821,1718374321246,-500.0,0.00024931,3]
[329454822,1718374321258,-500.0,0.00024931,3]
[329454823,1718374321276,-611.38581253,0.00024931,3]
[329454824,1718374321287,-500.0,0.00024931,3]
[329454825,1718374321298,-500.0,0.00024931,3]
[329454826,1718374321320,-500.0,0.00024931,3]
[329454827,1718374321341,-500.0,0.00024931,3]
[329454828,1718374321364,-500.0,0.00024931,3]
[329454829,1718374321378,-500.0,0.00024931,3]
[329454830,1718374321407,-512.57320379,0.00024931,3]
[329454831,1718374321421,-500.0,0.00024931,3]
[329454832,1718374321460,-500.0,0.00024931,3]
[329454833,1718374321500,-659.84,0.00024931,3]
[329454834,1718374321551,-835.81,0.00024931,3]
[329454835,1718374321563,-500.0,0.00024931,3]
[329454836,1718374321574,-500.0,0.00024931,3]
[329454837,1718374321587,-500.0,0.00024931,3]
[329454838,1718374321601,-151.0,0.00024931,7]
[329454839,1718374321612,-338.40247172,0.00024931,3]
[329454840,1718374321623,-151.0,0.00024931,7]
[329454841,1718374321635,-500.0,0.00024931,3]
[329454842,1718374321646,-675.24,0.00024931,3]
[329454843,1718374321661,-1706.64,0.00024931,3]
[329454844,1718374321682,-500.0,0.00024931,3]
[329454845,1718374321699,-500.0,0.00024931,3]
[329454846,1718374321709,-500.0,0.00024931,3]
[329454847,1718374321732,-500.0,0.00024931,3]
[329454848,1718374321749,-500.0,0.00024931,3]
[329454849,1718374321760,-612.78,0.00024931,3]
[329454850,1718374321785,-500.0,0.00024931,3]
[329454851,1718374321797,-527.45,0.00024931,3]
[329454852,1718374321826,-561.87,0.00024931,3]
[329454853,1718374321837,-500.0,0.00024931,3]
[329454854,1718374321853,-500.0,0.00024931,3]
[329454855,1718374321867,-500.0,0.00024931,3]
[329454856,1718374321904,-500.0,0.00024931,3]
[329454857,1718374321915,-302.85625449,0.00024931,3]
[329454858,1718374321941,-500.0,0.00024931,3]
[329454859,1718374321958,-500.0,0.00024931,3]
[329454860,1718374321985,-500.0,0.00024931,3]
[329454861,1718374322005,-500.0,0.00024931,3]
[329454862,1718374322035,-500.0,0.00024931,3]
[329454863,1718374322050,-500.0,0.00024931,3]
[329454864,1718374322071,-500.0,0.00024931,3]
[329454865,1718374322085,-500.0,0.00024931,3]
[329454866,1718374322101,-775.58,0.00024931,3]
[329454867,1718374322119,-151.0,0.00024931,7]
[329454868,1718374322145,-151.0,0.00024931,7]
[329454869,1718374322157,-653.6,0.00024931,3]
[329454870,1718374322168,-576.03,0.00024931,3]
[329454871,1718374322188,-500.0,0.00024931,3]
[329454872,1718374322222,-500.0,0.00024931,3]
[329454873,1718374322233,-918.51,0.00024931,3]
[329454874,1718374322260,-500.0,0.00024931,3]
[329454875,1718374322272,-500.0,0.00024931,3]
[329454876,1718374322301,-683.33,0.00024931,3]
[329454877,1718374322328,-258.84814954,0.00024931,3]
[329454878,1718374322340,-500.0,0.00024931,3]
[329454879,1718374322372,-500.0,0.00024931,3]
[329454880,1718374322418,-500.0,0.00024931,3]
[329454881,1718374322434,-520.41825072,0.00024931,3]
[329454882,1718374322451,-500.0,0.00024931,3]
[329454883,1718374322465,-500.0,0.00024931,3]
[329454884,1718374322481,-602.21,0.00024931,3]
[329454885,1718374322495,-644.48,0.00024931,3]
[329454886,1718374322520,-510.92051316,0.00024931,3]
[329454887,1718374322534,-2248.72,0.00024931,3]
[329454888,1718374322596,-598.33043373,0.00024931,3]
[329454889,1718374322632,-500.0,0.00024931,3]
[329454890,1718374322646,-2837.38,0.00024931,3]
[329454891,1718374322696,-500.0,0.00024931,3]
[329454892,1718374322715,-500.0,0.00024931,3]
[329454893,1718374322734,-500.0,0.00024931,3]
[329454894,1718374322788,-1370.68,0.00024931,3]
[329454895,1718374322802,-664.65,0.00024931,3]
[329454896,1718374322832,-500.0,0.00024931,3]
[329454897,1718374322871,-642.17,0.00024931,3]
[329454898,1718374322882,-151.0,0.00024931,7]
[329454899,1718374322895,-608.32,0.00024931,3]
[329454900,1718374322937,-151.0,0.00024931,7]
[329454901,1718374322955,-841.18,0.00024931,3]
[329454902,1718374322966,-3736.29,0.00024931,3]
[329454903,1718374322989,-500.0,0.00024931,3]
[329454904,1718374323048,-500.0,0.00024931,3]
[329454905,1718374323085,-1004.61,0.00024931,3]
[329454906,1718374323100,-982.18,0.00024931,3]
[329454907,1718374323114,-758.79,0.00024931,3]
[329454908,1718374323141,-1098.2,0.00024931,3]
[329454909,1718374323168,-1477.33,0.00024931,3]
[329454910,1718374323185,-500.0,0.00024931,3]
[329454911,1718374323203,-922.2,0.00024931,3]
[329454912,1718374323256,-500.0,0.00024931,3]
[329454913,1718374323272,-500.0,0.00024931,3]
[329454914,1718374323284,-500.0,0.00024931,3]
[329454915,1718374323326,-816.92,0.00024931,3]
[329454916,1718374323369,-151.0,0.00024931,7]
[329454917,1718374323382,-500.0,0.00024931,3]
[329454918,1718374323400,-880.65,0.00024931,3]
[329454919,1718374323423,-640.64,0.00024931,3]
[329454920,1718374323444,-500.0,0.00024931,3]
[329454921,1718374323475,-151.0,0.00024931,7]
[329454922,1718374323486,-715.17,0.00024931,3]
[329454923,1718374323510,-8277.38,0.00024931,3]
[329454924,1718374323524,-822.26,0.00024931,3]
[329454925,1718374323549,-193.551024,0.00024931,7]
[329454926,1718374323561,-9586.73,0.00024931,3]
[329454927,1718374323580,-500.0,0.00024931,3]
[329454928,1718374323613,-2574.26,0.00024931,3]
[329454929,1718374323624,-866.21,0.00024931,3]
[329454930,1718374323638,-500.0,0.00024931,3]
[329454931,1718374323650,-500.0,0.00024931,3]
[329454932,1718374323668,-738.39,0.00024931,3]
[329454933,1718374323679,-500.0,0.00024931,3]
[329454934,1718374323700,-527.51905582,0.00024931,3]
[329454935,1718374323724,-1145.58,0.00024931,3]
[329454936,1718374323748,-500.0,0.00024931,3]
[329454937,1718374323776,-1007.53,0.00024931,3]
[329454938,1718374323800,-1097.83,0.00024931,3]
[329454939,1718374323840,-814.77,0.00024931,3]
[329454940,1718374323877,-500.0,0.00024931,3]
[329454941,1718374323897,-3640.36,0.00024931,3]
[329454942,1718374323912,-577.91,0.00024931,3]
[329454943,1718374323943,-665.19,0.00024931,3]
[329454944,1718374323959,-151.0,0.00024931,7]
[329454945,1718374323975,-151.0,0.00024931,7]
[329454946,1718374323998,-1074.54,0.00024931,3]
[329454947,1718374324016,-1431.78,0.00024931,3]
[329454948,1718374324069,-917.79,0.00024931,3]
[329454949,1718374324112,-524.05,0.00024931,3]
[329454950,1718374324128,-500.0,0.00024931,3]
[329454951,1718374324144,-989.25,0.00024931,7]
[329454952,1718374324196,-1159.94,0.00024931,3]
[329454953,1718374324245,-3419.19,0.00024931,3]
[329454954,1718374324265,-1158.93,0.00024931,3]
[329454955,1718374324285,-5767.42,0.00024931,3]
[329454956,1718374324324,-1216.46,0.00024931,3]
[329454957,1718374324343,-954.24,0.00024931,3]
[329454958,1718374324384,-500.0,0.00024931,3]
[329454959,1718374324407,-513.23,0.00024931,3]
[329454960,1718374324426,-500.0,0.00024931,3]
[329454961,1718374324457,-1143.41,0.00024931,3]
[329454962,1718374324474,-500.0,0.00024931,3]
[329454963,1718374324492,-2791.61,0.00024931,3]
[329454964,1718374324529,-500.0,0.00024931,3]
[329454965,1718374324570,-500.0,0.00024931,3]
[329454966,1718374324592,-563.76,0.00024931,3]
[329454967,1718374324612,-1063.94,0.00024931,3]
[329454968,1718374324636,-1744.13,0.00024931,3]
[329454969,1718374324658,-500.0,0.00024931,3]
[329454970,1718374324700,-500.0,0.00024931,3]
[329454971,1718374324714,-500.0,0.00024931,3]
[329454972,1718374324728,-563.83,0.00024931,3]
[329454973,1718374324744,-1290.53,0.00024931,3]
[329454974,1718374324761,-500.0,0.00024931,3]
[329454975,1718374324793,-519.64715308,0.00024931,3]
[329454976,1718374324807,-500.0,0.00024931,3]
[329454977,1718374324820,-500.0,0.00024931,3]
[329454978,1718374324836,-1729.64,0.00024931,3]
[329454979,1718374324865,-1869.28,0.00024931,3]
[329454980,1718374324918,-500.0,0.00024931,3]
[329454981,1718374324935,-151.0,0.00024931,7]
[329454982,1718374324959,-522.05,0.00024931,3]
[329454983,1718374324995,-151.0,0.00024931,7]
[329454984,1718374325011,-500.0,0.00024931,3]
[329454985,1718374325028,-500.0,0.00024931,3]
[329454986,1718374325072,-1122.16,0.00024931,3]
[329454987,1718374325093,-925.97,0.00024931,3]
[329454988,1718374325114,-2122.29,0.00024931,3]
[329454989,1718374325138,-3209.58,0.00024931,3]
[329454990,1718374325166,-500.0,0.00024931,3]
[329454991,1718374325186,-1482.61,0.00024931,3]
[329454992,1718374325203,-869.83,0.00024931,3]
[329454993,1718374325220,-500.0,0.00024931,3]
[329454994,1718374325247,-1413.02,0.00024931,3]
[329454995,1718374325289,-2108.9,0.00024931,3]
[329454996,1718374325335,-508.31,0.00024931,3]
[329454997,1718374325360,-300.20291246,0.00024931,3]
[329454998,1718374325381,-882.09,0.00024931,3]
[329454999,1718374325404,-500.0,0.00024931,3]
[329455000,1718374325431,-1309.64,0.00024931,3]
[329455001,1718374325461,-500.0,0.00024931,3]
[329455002,1718374325497,-6459.01,0.00024931,3]
[329455003,1718374325513,-8278.21,0.00024931,3]
[329455004,1718374325532,-599.48,0.00024931,3]
[329455005,1718374325559,-500.0,0.00024931,3]
[329455006,1718374325601,-766.08,0.00024931,3]
[329455007,1718374325620,-1363.23,0.00024931,3]
[329455008,1718374325669,-713.94,0.00024931,3]
[329455009,1718374325689,-500.0,0.00024931,3]
[329455010,1718374325716,-500.0,0.00024931,3]
[329455011,1718374325731,-500.0,0.00024931,3]
[329455012,1718374325744,-500.0,0.00024931,3]
[329455013,1718374325766,-500.0,0.00024931,3]
[329455014,1718374325782,-718.7,0.00024931,3]
[329455015,1718374325794,-967.31,0.00024931,3]
[329455016,1718374325815,-2890.78,0.00024931,3]
[329455017,1718374325828,-6155.02,0.00024931,3]
[329455018,1718374325849,-500.0,0.00024931,3]
[329455019,1718374325861,-500.0,0.00024931,3]
[329455020,1718374325874,-500.0,0.00024931,3]
[329455021,1718374325894,-3858.31,0.00024931,3]
[329455022,1718374325917,-3426.35,0.00024931,3]
[329455023,1718374325936,-151.0,0.00024931,7]
[329455024,1718374325963,-500.0,0.00024931,3]
[329455025,1718374325986,-1937.42,0.00024931,3]
[329455026,1718374326008,-500.0,0.00024931,3]
[329455027,1718374326023,-602.14,0.00024931,3]
[329455028,1718374326038,-1188.94,0.00024931,3]
[329455029,1718374326058,-394.87410235,0.00024931,3]
[329455030,1718374326079,-500.0,0.00024931,3]
[329455031,1718374326094,-2061.56,0.00024931,3]
[329455032,1718374326111,-500.0,0.00024931,3]
[329455033,1718374326124,-1016.56,0.00024931,3]
[329455034,1718374326138,-1128.67,0.00024931,3]
[329455035,1718374326152,-1692.02,0.00024931,3]
[329455036,1718374326177,-501.1,0.00024931,3]
[329455037,1718374326193,-500.0,0.00024931,3]
[329455038,1718374326214,-567.38,0.00024931,3]
[329455039,1718374326234,-1002.93,0.00024931,3]
[329455040,1718374326250,-1112.84,0.00024931,3]
[329455041,1718374326264,-544.85,0.00024931,3]
[329455042,1718374326293,-689.14,0.00024931,3]
[329455043,1718374326324,-500.0,0.00024931,3]
[329455044,1718374326337,-514.08,0.00024931,3]
[329455045,1718374326353,-1669.34,0.00024931,3]
[329455046,1718374326366,-500.0,0.00024931,3]
[329455047,1718374326382,-3822.81,0.00024931,3]
[329455048,1718374326413,-513.39572666,0.00024931,3]
[329455049,1718374326440,-500.0,0.00024931,3]
[329455050,1718374326457,-500.0,0.00024931,3]
[329455051,1718374326480,-2384.22,0.00024931,3]
[329455052,1718374326512,-1115.57,0.00024931,3]
[329455053,1718374326567,-500.0,0.00024931,2]
[329455054,1718374326594,-702.55,0.00024931,3]
[329455055,1718374326610,-500.0,0.00024931,3]
[329455056,1718374326623,-500.0,0.00024931,3]
[329455057,1718374326641,-500.0,0.00024931,3]
[329455058,1718374326672,-532.14,0.00024931,3]
[329455059,1718374326686,-2163.42,0.00024931,3]
[329455060,1718374326738,-629.08,0.00024931,3]
[329455061,1718374326751,-873.34,0.00024931,3]
[329455062,1718374326784,-676.86,0.00024931,3]
[329455063,1718374326807,-11835.04,0.00024931,3]
[329455064,1718374326824,-500.0,0.00024931,3]
[329455065,1718374326838,-500.0,0.00024931,3]
[329455066,1718374326871,-1499.12,0.00024931,3]
[329455067,1718374326899,-1109.67,0.00024931,3]
[329455068,1718374326920,-1234.09,0.00024931,3]
[329455069,1718374326939,-500.0,0.00024931,3]
[329455070,1718374326958,-2525.21,0.00024931,3]
[329455071,1718374326979,-500.0,0.00024931,3]
[329455072,1718374326993,-1018.6,0.00024931,3]
[329455073,1718374327020,-500.0,0.00024931,3]
[329455074,1718374327056,-2145.48,0.00024931,3]
[329455075,1718374327083,-500.0,0.00024931,3]
[329455076,1718374327129,-995.35,0.00024931,3]
[329455077,1718374327143,-544.46236703,0.00024931,3]
[329455078,1718374327189,-462.877375,0.00024931,7]
[329455079,1718374327205,-1097.58,0.00024931,3]
[329455080,1718374327230,-462.877375,0.00024931,7]
[329455081,1718374327250,-500.0,0.00024931,3]
[329455082,1718374327273,-1778.24,0.00024931,3]
[329455083,1718374327294,-500.0,0.00024931,3]
[329455084,1718374327326,-500.0,0.00024931,3]
[329455085,1718374327343,-1628.09,0.00024931,3]
[329455086,1718374327357,-1321.13,0.00024931,3]
[329455087,1718374327384,-500.0,0.00024931,3]
[329455088,1718374327400,-500.0,0.00024931,3]
[329455089,1718374327442,-299.45114458,0.00024931,3]
[329455090,1718374327493,-633.29,0.00024931,3]
[329455091,1718374327507,-1162.14,0.00024931,3]
[329455092,1718374327529,-1121.54,0.00024931,3]
[329455093,1718374327582,-500.0,0.00024931,3]
[329455094,1718374327597,-500.0,0.00024931,3]
[329455095,1718374327616,-1054.93,0.00024931,3]
[329455096,1718374327629,-279.4595524,0.00024931,3]
[329455097,1718374327643,-910.65,0.00024931,3]
[329455098,1718374327659,-462.877375,0.00024931,7]
[329455099,1718374327683,-500.0,0.00024931,3]
[329455100,1718374327695,-462.877375,0.00024931,7]
[329455101,1718374327713,-500.0,0.00024931,3]
[329455102,1718374327726,-553.74098022,0.00024931,3]
[329455103,1718374328032,-1251.31,0.00024931,3]
[329455104,1718374328045,-1312.32,0.00024931,3]
[329455105,1718374328056,-500.0,0.00024931,3]
[329455106,1718374328084,-1644.57,0.00024931,3]
[329455107,1718374328095,-541.23,0.00024931,3]
[329455108,1718374328116,-151.0,0.00024931,7]
[329455109,1718374328128,-500.0,0.00024931,3]
[329455110,1718374328146,-500.0,0.00024931,3]
[329455111,1718374328179,-151.0,0.00024931,7]
[329455112,1718374328228,-1918.56,0.00024931,3]
[329455113,1718374328269,-500.0,0.00024931,3]
[329455114,1718374328334,-1028.7,0.00024931,3]
[329455115,1718374328357,-3154.8,0.00024931,3]
[329455116,1718374328382,-500.0,0.00024931,3]
[329455117,1718374328399,-500.0,0.00024931,3]
[329455118,1718374328417,-500.0,0.00024931,3]
[329455119,1718374328437,-500.0,0.00024931,3]
[329455120,1718374328459,-1028.85,0.00024931,3]
[329455121,1718374328474,-1237.01,0.00024931,3]
[329455122,1718374328524,-973.18,0.00024931,3]
[329455123,1718374328545,-182.38006617,0.00024931,3]
[329455124,1718374328577,-973.91,0.00024931,3]
[329455125,1718374328598,-530.11,0.00024931,3]
[329455126,1718374328623,-500.0,0.00024931,3]
[329455127,1718374328654,-500.0,0.00024931,3]
[329455128,1718374328713,-778.7,0.00024931,3]
[329455129,1718374328728,-500.0,0.00024931,3]
[329455130,1718374328746,-923.86,0.00024931,3]
[329455131,1718374328756,-6916.15,0.00024931,3]
[329455132,1718374328767,-500.0,0.00024931,3]
[329455133,1718374328782,-500.0,0.00024931,3]
[329455134,1718374328809,-500.0,0.00024931,3]
[329455135,1718374328821,-518.14384276,0.00024931,3]
[329455136,1718374328857,-151.0,0.00024931,7]
[329455137,1718374328901,-151.0,0.00024931,7]
[329455138,1718374328924,-500.0,0.00024931,3]
[329455139,1718374328940,-500.0,0.00024931,3]
[329455140,1718374328955,-500.0,0.00024931,3]
[329455141,1718374328972,-620.73543545,0.00024931,3]
[329455142,1718374329483,-218.89456455,0.00024931,3]
[329455143,1718374329497,-500.0,0.00024931,3]
[329455144,1718374329528,-91.28050028,0.00024931,3]
[329455145,1718374329551,-408.71949972,0.00024931,3]
[329455146,1718374329568,-500.0,0.00024931,3]
[329455147,1718374329580,-549.17,0.00024931,3]
[329455148,1718374329593,-295.78226727,0.00024931,3]
[329455149,1718374329988,-499.99,0.00018132,2]
[329455150,1718374329999,-1254.04773273,0.00024931,3]
[329455151,1718374330014,-2671.63,0.00024931,3]
[329455152,1718374330032,-521.18262865,0.00024931,3]
[329455153,1718374330051,-500.0,0.00024931,3]
[329455154,1718374330092,-490.23261471,0.00024931,3]
[329455155,1718374330144,-332.14738529,0.00024931,3]
[329455156,1718374330158,-500.0,0.00024931,3]
[329455157,1718374330182,-37.80632376,0.00024931,3]
[329455158,1718374330201,-462.19367624,0.00024931,3]
[329455159,1718374330228,-714.96,0.00024931,3]
[329455160,1718374330268,-500.0,0.00024931,3]
[329455161,1718374330281,-368.32619137,0.00024931,3]
[329455162,1718374330299,-608.78380863,0.00024931,3]
[329455163,1718374330317,-500.0,0.00024931,3]
[329455164,1718374330333,-730.87,0.00024931,3]
[329455165,1718374330351,-500.0,0.00024931,3]
[329455166,1718374330390,-500.0,0.00024931,3]
[329455167,1718374330465,-856.42,0.00024931,3]
[329455168,1718374330476,-108.28988382,0.00024931,3]
[329455169,1718374330503,-371.84105928,0.00024931,3]